lending/lending_fUSD_20251107
["ID","MTS","AMOUNT","RATE_DAILY","PERIOD"]
[393361052,1762526720130,-150.0,0.0004196,30]
[393361053,1762526720162,-383.0,0.0004196,90]
[393361054,1762526720199,-273.47129591,0.00041999,120]
[393361055,1762526720232,-311.47746275,0.00042,120]
[393361056,1762526720266,-204.59,0.00042,30]
[393361057,1762526720299,-308.15477649,0.00042,120]
[393361058,1762526720332,-503.84875274,0.00042,30]
[393361059,1762526720365,-392.72204714,0.00042,30]
[393361060,1762526720400,-425.23637757,0.00042,30]
[393361061,1762526720433,-427.10322003,0.00042,120]
[393361062,1762526720473,-686.77876426,0.00042,120]
[393361063,1762526720508,-447.43263253,0.00042,30]
[393361064,1762526720542,-1000.0,0.00042,120]
[393361065,1762526720579,-400.0,0.00042,120]
[393361066,1762526720615,-29341.0,0.00042,120]
[393361067,1762526720795,-367.1,0.00042,30]
[393361068,1762526720828,-10000.0,0.00042,30]
[393361069,1762526720862,-100000.0,0.00042,120]
[393361070,1762526720894,-3075.0,0.00042,120]
[393361071,1762526720927,-5169.71127053,0.00042,120]
[393361072,1762526720964,-150.0,0.00042005,30]
[393361073,1762526720997,-194.35456018,0.00042039,30]
[393361074,1762526721035,-1903.21,0.00042062,120]
[393361075,1762526721068,-150.0,0.00042072,30]
[393361076,1762526721102,-150.0,0.00042072,30]
[393361077,1762526721136,-150.0,0.00042084,30]
[393361078,1762526721169,-150.0,0.00042119,30]
[393361079,1762526721202,-181.55543942,0.00042121,120]
[393361080,1762526721236,-150.0,0.00042134,30]
[393361081,1762526721268,-150.0,0.00042193,30]
[393361082,1762526721304,-150.0,0.00042193,30]
[393361083,1762526721344,-150.0,0.00042193,30]
[393361084,1762526721379,-194.35456018,0.00042193,30]
[393361085,1762526721414,-50000.0,0.0004225,120]
[393361086,1762526721451,-150.0,0.00042253,30]
[393361087,1762526721488,-150.0,0.00042264,30]
[393361088,1762526721524,-150.0,0.00042269,30]
[393361089,1762526721559,-150.0,0.00042309,30]
[393361090,1762526721594,-194.35456018,0.00042346,30]
[393361091,1762526721630,-150.0,0.0004238,30]
[393361092,1762526721669,-150.0,0.00042391,30]
[393361093,1762526721703,-500.0,0.00042396,60]
[393361094,1762526721738,-150.0,0.00042434,30]
[393361095,1762526721772,-150.0,0.00042434,30]
[393361096,1762526721805,-150.0,0.00042445,30]
[393361097,1762526721839,-150.0,0.00042462,30]
[393361098,1762526721873,-2000.0,0.00042483,120]
[393361099,1762526721908,-150.0,0.00042483,30]
[393361100,1762526721949,-194.35456018,0.00042499,30]
[393361101,1762526721982,-18359.17832367,0.000425,120]
[393361102,1762526722016,-5000.0,0.000425,120]
[393361103,1762526722049,-50000.0,0.000425,120]
[393361104,1762526722083,-50000.0,0.000425,120]
[393361105,1762526722121,-150.0,0.00042567,30]
[393361106,1762526722153,-150.0,0.00042614,30]
[393361107,1762526722185,-150.0,0.00042626,30]
[393361108,1762526722222,-194.35456018,0.00042653,30]
[393361109,1762526722258,-150.0,0.00042658,30]
[393361110,1762526722295,-1900.0,0.0004267,60]
[393361111,1762526722330,-257.49397083,0.000427,90]
[393361112,1762526722367,-10000.0,0.000427,30]
[393361113,1762526722402,-500.0,0.0004273,120]
[393361114,1762526722437,-50000.0,0.0004275,120]
[393361115,1762526722479,-150.0,0.00042755,30]
[393361116,1762526722514,-150.0,0.00042779,30]
[393361117,1762526722553,-150.0,0.00042795,30]
[393361118,1762526722590,-150.0,0.00042795,30]
[393361119,1762526722625,-232.37579087,0.00042799,120]
[393361120,1762526722660,-178.44988153,0.00042799,120]
[393361121,1762526722699,-194.35456018,0.00042806,30]
[393361122,1762526722732,-150.0,0.00042806,30]
[393361123,1762526722765,-150.0,0.00042832,30]
[393361124,1762526722799,-150.0,0.00042942,30]
[393361125,1762526722832,-500.0,0.00042944,60]
[393361126,1762526722886,-211.0,0.0004295,30]
[393361127,1762526722925,-194.35456018,0.00042959,30]
[393361128,1762526722961,-150.0,0.00042959,30]
[393361129,1762526722998,-150.0,0.00042976,30]
[393361130,1762526723035,-150.0,0.00042987,30]
[393361131,1762526723073,-967.70629741,0.00043,120]
[393361132,1762526723112,-1325.10245263,0.00043,120]
[393361133,1762526723151,-165.49258279,0.00043,120]
[393361134,1762526723189,-250.0,0.00043,120]
[393361135,1762526723236,-158.29860388,0.00043,120]
[393361136,1762526723275,-200.0,0.00043,120]
[393361137,1762526723312,-10000.0,0.00043,30]
[393361138,1762526723348,-150.0,0.00043,120]
[393361139,1762526723384,-10000.0,0.00043,30]
[393361140,1762526723424,-5000.0,0.00043,120]
[393361141,1762526723459,-150.0,0.00043007,30]
[393361142,1762526723496,-203.8,0.00043014,120]
[393361143,1762526723536,-150.0,0.0004307,30]
[393361144,1762526723571,-269.22624179,0.000431,120]
[393361145,1762526723608,-1775.3547109,0.000431,120]
[393361146,1762526723643,-313.92182887,0.000431,120]
[393361147,1762526723678,-2000.0,0.00043109,120]
[393361148,1762526723716,-194.35456018,0.00043113,30]
[393361149,1762526723750,-150.0,0.0004313,30]
[393361150,1762526723785,-688.22311594,0.0004314,120]
[393361151,1762526723819,-150.0,0.00043156,30]
[393361152,1762526723853,-150.0,0.00043156,30]
[393361153,1762526723893,-150.0,0.00043156,30]
[393361154,1762526723932,-150.0,0.00043167,30]
[393361155,1762526723970,-150.0,0.00043181,30]
[393361156,1762526724010,-155536.1903838,0.000432,120]
[393361157,1762526724046,-737.2321,0.0004322,30]
[393361158,1762526724081,-194.35456018,0.00043266,30]
[393361159,1762526724115,-702.52069766,0.0004328,120]
[393361160,1762526724152,-150.0,0.00043284,30]
[393361161,1762526724188,-1391.24,0.000433,90]
[393361162,1762526724230,-150.0,0.00043317,30]
[393361163,1762526724270,-150.0,0.00043337,30]
[393361164,1762526724310,-150.0,0.00043348,30]
[393361165,1762526724350,-150.0,0.00043356,30]
[393361166,1762526724390,-150.0,0.0004336,120]
[393361167,1762526724428,-194.35456018,0.00043419,30]
[393361168,1762526724470,-150.0,0.00043439,30]
[393361169,1762526724508,-500.0,0.00043492,60]
[393361170,1762526724761,-150.0,0.00043504,30]
[393361171,1762526724795,-150.0,0.00043518,30]
[393361172,1762526724829,-150.0,0.00043518,30]
[393361173,1762526724868,-150.0,0.00043528,30]
[393361174,1762526724904,-150.0,0.0004353,30]
[393361175,1762526724936,-194.35456018,0.00043573,30]
[393361176,1762526724975,-150.0,0.00043649,30]
[393361177,1762526725009,-150.0,0.00043677,30]
[393361178,1762526725044,-150.0,0.00043692,30]
[393361179,1762526725077,-150.0,0.00043699,30]
[393361180,1762526725111,-231.76223639,0.000437,120]
[393361181,1762526725144,-150.0,0.00043705,30]
[393361182,1762526725177,-150.0,0.00043709,30]
[393361183,1762526725209,-194.35456018,0.00043726,30]
[393361184,1762526725242,-2000.0,0.00043734,120]
[393361185,1762526725274,-1900.0,0.00043766,60]
[393361186,1762526725307,-617.68746275,0.000438,30]
[393361187,1762526725340,-404.15348377,0.000438,120]
[393361188,1762526725373,-754.03,0.000438,120]
[393361189,1762526725457,-999.0,0.00043835,120]
[393361190,1762526725535,-500.0,0.00043836,36]
[393361191,1762526725617,-500.0,0.00043836,36]
[393361192,1762526725687,-150.0,0.00043879,30]
[393361193,1762526725762,-150.0,0.00043879,30]
[393361194,1762526725834,-150.0,0.00043879,30]
[393361195,1762526725916,-150.0,0.00043879,30]
[393361196,1762526725994,-194.35456018,0.00043879,30]
[393361197,1762526726071,-150.0,0.00043879,30]
[393361198,1762526726148,-150.0,0.00043879,30]
[393361199,1762526726233,-150.0,0.00043889,30]
[393361200,1762526726321,-847.06023386,0.000439,120]
[393361201,1762526726409,-467.25770418,0.000439,120]
[393361202,1762526726495,-1466.61273276,0.00043987,120]
[393361203,1762526726574,-70000.0,0.0004399,30]
[393361204,1762526726649,-392.476796,0.00043999,120]
[393361205,1762526726724,-1212.0,0.00044,120]
[393361206,1762526726800,-1004.05986967,0.00044,120]
[393361207,1762526726878,-248.37752394,0.00044,120]
[393361208,1762526726956,-150.0,0.00044,120]
[393361209,1762526727034,-400.0,0.00044,120]
[393361210,1762526727117,-213.82825394,0.00044,30]
[393361211,1762526727204,-136802.01,0.00044,120]
[393361212,1762526727290,-500.0,0.00044,120]
[393361213,1762526727377,-10000.0,0.00044,30]
[393361214,1762526727465,-4233.50531215,0.00044,120]
[393361215,1762526727552,-153.0,0.00044,120]
[393361216,1762526727640,-154.0,0.00044,120]
[393361217,1762526727720,-5000.0,0.00044,120]
[393361218,1762526727792,-536.657211,0.00044,57]
[393361219,1762526727870,-203.79986204,0.00044032,120]
[393361220,1762526727943,-203.79986203,0.00044032,120]
[393361221,1762526728019,-205.11101068,0.00044032,120]
[393361222,1762526728093,-204.67396113,0.00044032,120]
[393361223,1762526728171,-204.67396113,0.00044032,120]
[393361224,1762526728249,-194.35456018,0.00044033,30]
[393361225,1762526728329,-500.0,0.0004404,60]
[393361226,1762526728409,-150.0,0.00044054,30]
[393361227,1762526728495,-150.0,0.0004406,30]
[393361228,1762526728575,-500.0,0.00044063,120]
[393361229,1762526728650,-150.0,0.00044067,30]
[393361230,1762526728724,-150.0,0.0004407,30]
[393361231,1762526728798,-150.0,0.00044099,30]
[393361232,1762526728868,-150.0,0.00044177,30]
[393361233,1762526728936,-194.35456018,0.00044186,30]
[393361234,1762526729009,-150.0,0.00044228,30]
[393361235,1762526729078,-150.0,0.00044241,30]
[393361236,1762526729151,-150.0,0.00044241,30]
[393361237,1762526729222,-158.34261106,0.0004425,120]
[393361238,1762526729300,-150.0,0.0004425,30]
[393361239,1762526729380,-150.0,0.00044254,30]
[393361240,1762526729464,-150.0,0.00044284,30]
[393361241,1762526729547,-150.0,0.00044323,120]
[393361242,1762526729631,-194.35456018,0.00044339,30]
[393361243,1762526729710,-150.0,0.00044339,30]
[393361244,1762526729790,-2000.0,0.0004436,120]
[393361245,1762526729868,-418.24613859,0.000444,120]
[393361246,1762526729943,-150.0,0.00044403,30]
[393361247,1762526730023,-150.0,0.00044422,30]
[393361248,1762526730102,-150.0,0.00044431,30]
[393361249,1762526730180,-150.0,0.00044442,30]
[393361250,1762526730257,-740885.49371319,0.00044444,120]
[393361251,1762526730337,-441819.62964326,0.00044444,120]
[393361252,1762526736850,-186.88071713,0.00041132,30]
[393361253,1762526736930,-151.59655694,0.00041132,30]
[393361254,1762526737009,-150.0,0.00041213,30]
[393361255,1762526737090,-186.88071713,0.00041285,30]
[393361256,1762526737165,-151.59655694,0.00041285,30]
[393361257,1762526737418,-186.88071713,0.00041438,30]
[393361258,1762526737501,-151.59655694,0.00041438,30]
[393361259,1762526737578,-150.0,0.0004151,30]
[393361260,1762526737655,-186.88071713,0.00041591,30]
[393361261,1762526737746,-186.88071713,0.00041745,30]
[393361262,1762526737834,-150.0,0.00041808,30]
[393361263,1762526737918,-186.88071713,0.00041898,30]
[393361264,1762526738001,-186.88071713,0.00042051,30]
[393361265,1762526738080,-150.0,0.00042105,30]
[393361266,1762526738157,-186.88071713,0.00042204,30]
[393361267,1762526738236,-186.88071713,0.00042357,30]
[393361268,1762526738319,-150.0,0.00042402,30]
[393361269,1762526738399,-186.88071713,0.00042511,30]
[393361270,1762526738479,-186.88071713,0.00042664,30]
[393361271,1762526738559,-150.0,0.000427,30]
[393361272,1762526738639,-186.88071713,0.00042817,30]
[393361273,1762526738719,-186.88071713,0.0004297,30]
[393361274,1762526738792,-150.0,0.00042997,30]
[393361275,1762526738863,-186.88071713,0.00043123,30]
[393361276,1762526738936,-186.88071713,0.00043277,30]
[393361277,1762526739017,-150.0,0.00043295,30]
[393361278,1762526739093,-186.88071713,0.0004343,30]
[393361279,1762526739176,-186.88071713,0.00043583,30]
[393361280,1762526739264,-150.0,0.00043592,30]
[393361281,1762526739357,-186.88071713,0.00043736,30]
[393361282,1762526739446,-186.88071713,0.00043889,30]
[393361283,1762526739538,-150.0,0.00043889,30]
[393361284,1762526739628,-186.88071713,0.00044043,30]
[393361285,1762526739717,-150.0,0.00044187,30]
[393361286,1762526739795,-186.88071713,0.00044196,30]
[393361287,1762526739874,-186.88071713,0.00044349,30]
[393361288,1762526739953,-168466.82696572,0.00044444,120]
[393361289,1762526740038,-150.0,0.00044484,30]
[393361290,1762526740117,-523.55021497,0.000445,120]
[393361291,1762526740199,-150.40959212,0.000445,120]
[393361292,1762526740290,-186.88071713,0.00044502,30]
[393361293,1762526740374,-150.0,0.00044602,30]
[393361294,1762526740457,-150.0,0.00044602,30]
[393361295,1762526740543,-150.0,0.00044612,30]
[393361296,1762526740621,-186.88071713,0.00044655,30]
[393361297,1762526740701,-380.0,0.00044758,90]
[393361298,1762526740786,-150.0,0.00044781,30]
[393361299,1762526740867,-150.0,0.00044783,30]
[393361300,1762526740943,-150.0,0.00044792,30]
[393361301,1762526741023,-153.0,0.000448,120]
[393361302,1762526741102,-186.88071713,0.00044808,30]
[393361303,1762526741182,-1900.0,0.00044862,60]
[393361304,1762526741258,-409.28951804,0.0004489,120]
[393361305,1762526741336,-150.0,0.00044891,30]
[393361306,1762526741412,-368.31030618,0.000449,30]
[393361307,1762526741485,-211.0,0.0004496,30]
[393361308,1762526741562,-186.88071713,0.00044962,30]
[393361309,1762526741639,-150.0,0.00044964,30]
[393361310,1762526741709,-150.0,0.00044964,30]
[393361311,1762526741790,-150.0,0.00044973,30]
[393361312,1762526741872,-2000.0,0.00044985,120]
[393361313,1762526741945,-733.31645019,0.00045,120]
[393361314,1762526742011,-150.84135084,0.00045,30]
[393361315,1762526742081,-156.55604877,0.00045,30]
[393361316,1762526742146,-150.0,0.00045,120]
[393361317,1762526742221,-20889.23,0.00045,120]
[393361318,1762526742304,-300.0,0.00045,60]
[393361319,1762526742390,-156.8,0.00045,85]
[393361320,1762526742474,-1147.0,0.00045,120]
[393361321,1762526742554,-2912.683811,0.00045,120]
[393361322,1762526742630,-174.29753977,0.00045,120]
[393361323,1762526742702,-7301.17945038,0.00045,120]
[393361324,1762526742776,-157.73321507,0.00045,120]
[393361325,1762526742845,-399.0,0.00045,120]
[393361326,1762526742927,-1000000.0,0.00045,120]
[393361327,1762526743010,-1000000.0,0.00045,120]
[393361328,1762526743097,-561279.0,0.00045,120]
[393361329,1762526743186,-40609.40966797,0.00045,120]
[393361330,1762526743270,-65290.64991834,0.00045,120]
[393361331,1762526743356,-12483.0,0.00045,120]
[393361332,1762526743441,-2000000.0,0.00045,120]
[393361333,1762526743527,-102533.22763444,0.00045,120]
[393361334,1762526748373,-150.0,0.00041287,30]
[393361335,1762526748451,-150.0,0.00041362,30]
[393361336,1762526748535,-150.0,0.0004151,30]
[393361337,1762526748612,-151.59655694,0.00041591,30]
[393361338,1762526748684,-150.0,0.00041733,30]
[393361339,1762526748756,-151.59655694,0.00041745,30]
[393361340,1762526748826,-151.59655694,0.00041898,30]
[393361341,1762526748894,-150.0,0.00041956,30]
[393361342,1762526748969,-151.59655694,0.00042051,30]
[393361343,1762526749038,-150.0,0.00042179,30]
[393361344,1762526749108,-151.59655694,0.00042204,30]
[393361345,1762526749180,-150.0,0.00042204,30]
[393361346,1762526749254,-151.59655694,0.00042357,30]
[393361347,1762526749332,-150.0,0.00042402,30]
[393361348,1762526749410,-151.59655694,0.00042511,30]
[393361349,1762526749487,-150.0,0.00042626,30]
[393361350,1762526749564,-151.59655694,0.00042664,30]
[393361351,1762526749641,-151.59655694,0.00042817,30]
[393361352,1762526749712,-150.0,0.00042849,30]
[393361353,1762526749785,-151.59655694,0.0004297,30]
[393361354,1762526749856,-150.0,0.00043047,30]
[393361355,1762526749935,-150.0,0.00043072,30]
[393361356,1762526750010,-151.59655694,0.00043123,30]
[393361357,1762526750085,-150.0,0.00043167,30]
[393361358,1762526750157,-151.59655694,0.00043277,30]
[393361359,1762526750233,-150.0,0.00043295,30]
[393361360,1762526750309,-151.59655694,0.0004343,30]
[393361361,1762526750385,-150.0,0.00043518,30]
[393361362,1762526750460,-151.59655694,0.00043583,30]
[393361363,1762526750536,-151.59655694,0.00043736,30]
[393361364,1762526750613,-150.0,0.00043741,30]
[393361365,1762526750687,-151.59655694,0.00043889,30]
[393361366,1762526750757,-150.0,0.00043889,30]
[393361367,1762526750830,-150.0,0.00043964,30]
[393361368,1762526750901,-151.59655694,0.00044043,30]
[393361369,1762526750972,-150.0,0.00044187,30]
[393361370,1762526751038,-151.59655694,0.00044196,30]
[393361371,1762526751105,-151.59655694,0.00044349,30]
[393361372,1762526751177,-150.0,0.0004441,30]
[393361373,1762526751251,-151.59655694,0.00044502,30]
[393361374,1762526751327,-150.0,0.00044633,30]
[393361375,1762526751402,-151.59655694,0.00044655,30]
[393361376,1762526751477,-150.0,0.00044732,30]
[393361377,1762526751557,-151.59655694,0.00044808,30]
[393361378,1762526751630,-150.0,0.00044856,30]
[393361379,1762526751700,-151.59655694,0.00044962,30]
[393361380,1762526751772,-467466.77236556,0.00045,120]
[393361381,1762526751843,-1100000.0,0.00045,120]
[393361382,1762526751919,-855000.0,0.00045,120]
[393361383,1762526751992,-150.0,0.00045,45]
[393361384,1762526752064,-24739.5,0.00045,120]
[393361385,1762526752131,-10000.0,0.00045,30]
[393361386,1762526752198,-5000.0,0.00045,30]
[393361387,1762526752275,-5000.0,0.00045,120]
[393361388,1762526752358,-5000.0,0.00045,120]
[393361389,1762526752442,-100000.0,0.00045,120]
[393361390,1762526752524,-527.68,0.00045,120]
[393361391,1762526752608,-10267.47,0.00045,120]
[393361392,1762526752687,-5000.0,0.00045,120]
[393361393,1762526752763,-178.9,0.00045,120]
[393361394,1762526752833,-150.0,0.00045029,30]
[393361395,1762526752905,-150.0,0.00045079,30]
[393361396,1762526752987,-150.0,0.00045079,30]
[393361397,1762526753067,-186.88071713,0.00045115,30]
[393361398,1762526753148,-151.59655694,0.00045115,30]
[393361399,1762526753227,-500.0,0.00045136,60]
[393361400,1762526753311,-150.0,0.00045144,30]
[393361401,1762526753392,-150.0,0.00045153,30]
[393361402,1762526753475,-150.0,0.00045157,120]
[393361403,1762526753557,-154.0,0.000452,120]
[393361404,1762526753638,-186.88071713,0.00045268,30]
[393361405,1762526753722,-151.59655694,0.00045268,30]
[393361406,1762526753800,-150.0,0.00045302,30]
[393361407,1762526753879,-150.0,0.00045325,30]
[393361408,1762526753954,-150.0,0.00045325,30]
[393361409,1762526754032,-150.0,0.00045325,30]
[393361410,1762526754112,-150.0,0.00045334,30]
[393361411,1762526754191,-150.0,0.00045334,30]
[393361412,1762526754273,-150.0,0.00045376,30]
[393361413,1762526754352,-500.0,0.00045397,120]
[393361414,1762526754428,-186.88071713,0.00045421,30]
[393361415,1762526754506,-151.59655694,0.00045421,30]
[393361416,1762526754583,-150.0,0.00045499,30]
[393361417,1762526754658,-150.0,0.00045506,30]
[393361418,1762526754732,-150.0,0.00045514,30]
[393361419,1762526754959,-150.0,0.00045525,30]
[393361420,1762526755033,-150.0,0.00045566,30]
[393361421,1762526755105,-186.88071713,0.00045574,30]
[393361422,1762526755173,-151.59655694,0.00045574,30]
[393361423,1762526755244,-150.0,0.00045574,30]
[393361424,1762526755323,-2000.0,0.00045611,120]
[393361425,1762526755407,-150.0,0.00045674,30]
[393361426,1762526755485,-150.0,0.00045687,30]
[393361427,1762526755564,-150.0,0.00045687,30]
[393361428,1762526755639,-150.0,0.00045695,30]
[393361429,1762526755710,-531.44405732,0.000457,120]
[393361430,1762526755781,-153.0,0.000457,120]
[393361431,1762526755851,-150.0,0.00045719,30]
[393361432,1762526755919,-186.88071713,0.00045728,30]
[393361433,1762526755986,-151.59655694,0.00045728,30]
[393361434,1762526756052,-150.0,0.00045748,30]
[393361435,1762526756118,-549.24,0.00045792,30]
[393361436,1762526756184,-549.24,0.00045792,30]
[393361437,1762526756259,-549.24,0.00045792,30]
[393361438,1762526756342,-549.24,0.00045792,30]
[393361439,1762526756423,-549.24,0.00045792,30]
[393361440,1762526756507,-549.24,0.00045792,30]
[393361441,1762526756591,-549.24,0.00045792,30]
[393361442,1762526756671,-549.24,0.00045792,30]
[393361443,1762526756747,-549.24,0.00045792,30]
[393361444,1762526756817,-150.0,0.00045828,120]
[393361445,1762526756889,-150.0,0.00045867,30]
[393361446,1762526756963,-150.0,0.00045875,30]
[393361447,1762526757041,-186.88071713,0.00045881,30]
[393361448,1762526757110,-151.59655694,0.00045881,30]
[393361449,1762526757182,-152.0,0.00045897,30]
[393361450,1762526757256,-749.24803639,0.000459,120]
[393361451,1762526757333,-1900.0,0.00045958,60]
[393361452,1762526757412,-150.0,0.00045971,30]
[393361453,1762526757492,-150.0,0.00045971,30]
[393361454,1762526757576,-150.0,0.0004599,120]
[393361455,1762526757654,-359.73036103,0.00046,120]
[393361456,1762526757725,-561.30880461,0.00046,120]
[393361457,1762526757795,-204.17590425,0.00046,30]
[393361458,1762526757859,-3213.17044818,0.00046,30]
[393361459,1762526757925,-1000000.0,0.00046,120]
[393361460,1762526757992,-150.0,0.00046,120]
[393361461,1762526758058,-7083.0197421,0.00046,120]
[393361462,1762526758134,-255.73729869,0.00046,30]
[393361463,1762526758206,-318.86350658,0.00046,120]
[393361464,1762526758286,-199.7797751,0.00046,90]
[393361465,1762526758367,-400.0,0.00046,120]
[393361466,1762526758446,-957.38772788,0.00046,120]
[393361467,1762526758529,-10000.0,0.00046,30]
[393361468,1762526758612,-164.0,0.00046,90]
[393361469,1762526758689,-204.59,0.00046,30]
[393361470,1762526758761,-186.88071713,0.00046034,30]
[393361471,1762526758830,-151.59655694,0.00046034,30]
[393361472,1762526758896,-150.0,0.00046048,30]
[393361473,1762526758965,-150.0,0.00046048,30]
[393361474,1762526759040,-150.0,0.00046056,30]
[393361475,1762526759112,-150.0,0.00046106,30]
[393361476,1762526759183,-249.6497,0.0004611,30]
[393361477,1762526759265,-186.88071713,0.00046187,30]
[393361478,1762526759350,-151.59655694,0.00046187,30]
[393361479,1762526759451,-2576.54315614,0.00046189,60]
[393361480,1762526759541,-150.0,0.00046194,30]
[393361481,1762526759628,-2893.11283186,0.000462,120]
[393361482,1762526759710,-2449.447904,0.000462,120]
[393361483,1762526759790,-150.0,0.00046229,30]
[393361484,1762526759869,-500.0,0.00046232,60]
[393361485,1762526759957,-150.0,0.00046236,30]
[393361486,1762526760053,-2000.0,0.00046237,120]
[393361487,1762526760150,-150.0,0.00046268,30]
[393361488,1762526760254,-186.88071713,0.0004634,30]
[393361489,1762526760347,-151.59655694,0.0004634,30]
[393361490,1762526760441,-217.61997795,0.000464,120]
[393361491,1762526760537,-154.0,0.000464,120]
[393361492,1762526760629,-150.0,0.0004641,30]
[393361493,1762526760717,-150.0,0.0004641,30]
[393361494,1762526760809,-150.0,0.0004641,30]
[393361495,1762526760887,-150.0,0.00046417,30]
[393361496,1762526760976,-150.0,0.00046417,30]
[393361497,1762526761058,-150.0,0.00046417,30]
[393361498,1762526761138,-150.0,0.00046417,30]
[393361499,1762526761229,-150.0,0.00046417,30]
[393361500,1762526761325,-5612.49371568,0.0004649,120]
[393361501,1762526761420,-186.88071713,0.00046494,30]
[393361502,1762526761514,-151.59655694,0.00046494,30]
[393361503,1762526761602,-1000000.0,0.000465,120]
[393361504,1762526761689,-153.0,0.000465,120]
[393361505,1762526761778,-152.0,0.00046544,31]
[393361506,1762526761858,-150.0,0.00046566,30]
[393361507,1762526761948,-999.0,0.00046575,120]
[393361508,1762526762283,691.31,0.00040334,30]
[393361509,1762526762474,150.0,0.00041241,30]
[393361510,1762526762568,150.0,0.00041482,30]
[393361511,1762526762658,150.0,0.00041963,30]
[393361512,1762526762751,150.0,0.00042204,30]
[393361513,1762526762843,150.0,0.00041723,30]
[393361514,1762526762940,150.0,0.00042445,30]
[393361515,1762526763317,150.0,0.00042686,30]
[393361516,1762526763424,150.0,0.00042926,30]
[393361517,1762526763532,150.0,0.00043167,30]
[393361518,1762526763633,150.0,0.00043408,30]
[393361519,1762526763734,150.0,0.00043649,30]
[393361520,1762526763829,150.0,0.00043889,30]
[393361521,1762526763923,150.0,0.0004413,30]
[393361522,1762526764009,150.0,0.00044371,30]
[393361523,1762526764095,150.0,0.00044612,30]
[393361524,1762526764183,150.0,0.00044852,30]
[393361525,1762526764269,150.0,0.00045093,30]
[393361526,1762526764357,150.0,0.00045334,30]
[393361527,1762526764451,150.0,0.00045574,30]
[393361528,1762526764561,150.0,0.00045815,30]
[393361529,1762526764655,150.0,0.00046056,30]
[393361530,1762526764747,150.0,0.00046297,30]
[393361531,1762526764834,150.0,0.00046537,30]
[393361532,1762526778136,-687.95,0.00040334,30]
[393361533,1762526778398,-524.66541178,0.0004475,120]
[393361534,1762526778475,-500.0,0.00046,120]
[393361535,1762526778558,-500.0,0.000465,30]
[393361536,1762526778630,-250.0,0.00046575,30]
[393361537,1762526778694,-647.26890024,0.00046575,30]
[393361538,1762526778759,-500.0,0.00046575,30]
[393361539,1762526778823,-500.0,0.00046575,30]
[393361540,1762526778885,-322.6107,0.00046575,30]
[393361541,1762526778950,-500.0,0.00046575,30]
[393361542,1762526779014,-500.0,0.00046575,30]
[393361543,1762526779079,-500.0,0.00046575,30]
[393361544,1762526779144,-500.0,0.00046575,30]
[393361545,1762526779208,-500.0,0.00046575,30]
[393361546,1762526779284,-500.0,0.00046575,30]
[393361547,1762526779356,-250.0,0.00046575,30]
[393361548,1762526779431,-500.0,0.00046575,30]
[393361549,1762526779502,-500.0,0.00046575,30]
[393361550,1762526779570,-207.4,0.00046575,30]
[393361551,1762526779637,-250.0,0.00046575,30]